bitfinex-derivatives/quotes_SOLF0:USTF0_20251023
["timestamp","ask_amount","ask_price","bid_price","bid_amount"]
[1761255059202,2.62,189.3,189.26,2.87]
[1761255061405,2.62,189.29,189.26,2.87]
[1761255061704,2.62,189.29,189.24,2.88]
[1761255061902,2.62,189.29,189.23,4.7546]
[1761255062800,4.7536,189.28,189.23,4.7546]
[1761255063103,2.62,189.27,189.23,7.6346]
[1761255065406,2.62,189.27,189.23,2.88]
[1761255065604,2.62,189.26,189.21,7.6351]
[1761255065997,2.62,189.26,189.22,2.88]
[1761255080021,2.62,189.26,189.22,7.635]
[1761255080208,2.62,189.26,189.23,2.88]
[1761255086622,2.62,189.26,189.24,2.86]
[1761255092733,4.7539,189.27,189.24,2.86]
[1761255093036,7.4539,189.27,189.24,2.86]
[1761255093932,4.7539,189.27,189.24,2.86]
[1761255096127,7.4539,189.27,189.24,2.86]
[1761255096334,4.7539,189.27,189.24,2.86]
[1761255096637,2.7,189.28,189.24,2.86]
[1761255099635,7.4534,189.29,189.25,2.64]
[1761255101726,2.7,189.28,189.25,2.64]
[1761255114644,2.7,189.28,189.25,4.2473484]
[1761255115646,2.7,189.28,189.19,2.64]
[1761255115647,4.7545,189.25,189.19,2.64]
[1761255115854,4.7545,189.25,189.07,16.48618822]
[1761255115855,2.7,189.24,189.16,2.64]
[1761255116344,2.7,189.22,189.16,2.64]
[1761255117050,2.7,189.21,189.16,2.64]
[1761255119952,2.66,189.2,189.14,7.5669]
[1761255120548,2.66,189.2,189.15,4.4173484]
[1761255120751,2.66,189.2,189.16,2.81]
[1761255121650,2.66,189.2,189.17,1.6073484]
[1761255122153,2.66,189.2,189.17,4.4173484]
[1761255122549,4.9204129,189.28,189.18,2.81]
[1761255122754,2.66,189.23,189.21,1.6073484]
[1761255129761,7.415,189.23,189.21,1.6073484]
[1761255129962,2.66,189.22,189.21,1.6073484]
[1761255132362,2.66,189.22,189.19,2.81]
[1761255135553,2.66,189.27,189.21,2.81]
[1761255135757,2.66,189.22,189.16,2.81]
[1761255136358,2.66,189.22,189.17,2.81]
[1761255136756,2.66,189.22,189.14,2.81]
[1761255137653,2.66,189.21,189.14,2.81]
[1761255137859,2.66,189.21,189.15,4.4173484]
[1761255138558,2.66,189.2,189.15,4.4173484]
[1761255138754,2.66,189.2,189.16,2.81]
[1761255140771,7.4156,189.2,189.16,2.81]
[1761255140970,2.66,189.19,189.16,2.81]
[1761255145076,2.66,189.19,189.09,62.0]
[1761255145380,4.9204129,189.28,189.08,53.63171293]
[1761255145381,2.66,189.16,189.08,2.81]
[1761255145868,2.66,189.16,189.01,0.91958883]
[1761255145869,2.66,189.12,189.05,1.6073484]
[1761255146062,2.66,189.12,189.05,4.4173484]
[1761255146469,2.66,189.12,189.06,2.81]
[1761255146670,2.86,189.1,189.06,2.81]
[1761255147572,4.7582,189.1,189.06,2.81]
[1761255147773,2.86,189.09,189.06,2.81]
[1761255149281,2.86,189.09,189.04,1.6073484]
[1761255149585,2.75,189.08,189.03,4.4973484]
[1761255149883,2.75,189.08,189.04,2.89]
[1761255150376,2.75,189.08,189.05,1.6073484]
[1761255150584,2.75,189.11,189.06,2.89]
[1761255151084,2.75,189.09,189.06,2.89]
[1761255152488,7.5076,189.12,189.08,1.6073484]
[1761255152785,2.75,189.12,189.08,4.4973484]
[1761255152988,2.75,189.12,189.06,1.6073484]
[1761255153791,2.75,189.12,189.06,4.4973484]
[1761255153978,4.7577,189.12,189.06,4.4973484]
[1761255154285,2.75,189.11,189.07,2.89]
[1761255157381,2.75,189.11,189.04,2.89]
[1761255157683,2.75,189.11,189.05,4.4973484]
[1761255158793,2.75,189.1,189.05,4.4973484]
[1761255159082,2.75,189.1,189.06,2.89]
[1761255160988,2.75,189.09,189.06,2.89]
[1761255162288,2.75,189.08,189.06,2.89]
[1761255162782,2.75,189.08,189.05,1.6073484]
[1761255162988,2.75,189.08,189.05,4.4973484]
[1761255163189,2.75,189.08,189.06,2.89]
[1761255164093,2.75,189.12,188.89,162.07171293]
[1761255164391,2.75,189.12,189.04,1.6073484]
[1761255164991,2.75,189.06,189.04,1.6073484]
[1761255165377,2.75,189.06,189.03,2.89]
[1761255166792,2.75,189.06,189.03,4.4973484]
[1761255170498,2.75,189.06,189.03,2.89]
[1761255171600,2.75,189.06,189.01,4.4973484]
[1761255172096,2.75,189.06,189.02,2.89]
[1761255172999,4.7591,189.06,189.02,2.89]
[1761255173206,2.75,189.05,189.02,2.89]
[1761255173994,4.7586,189.08,189.02,2.89]
[1761255174200,2.75,189.09,189.02,2.89]
[1761255175088,2.75,189.06,189.02,2.89]
[1761255176797,4.7592,189.06,189.02,2.89]
[1761255177004,2.75,189.05,189.02,2.89]
[1761255178496,2.75,189.09,189.03,2.89]
[1761255179004,2.85,189.07,189.03,2.89]
[1761255180404,7.6089,189.07,189.03,2.89]
[1761255181207,4.7589,189.07,189.03,2.89]
[1761255181505,2.85,189.06,189.03,2.89]
[1761255186805,2.85,189.12,189.04,2.84]
[1761255188107,4.758,189.11,189.06,2.84]
[1761255188313,2.85,189.1,189.06,2.84]
[1761255191212,4.758,189.11,189.06,2.84]
[1761255191509,2.85,189.1,189.06,2.84]
[1761255202904,2.85,189.1,189.07,2.84]
[1761255204713,6.71439816,189.11,189.08,2.84]
[1761255209319,4.7572,189.14,189.09,2.67]
[1761255209625,2.63,189.13,189.09,2.67]
[1761255209822,6.49427586,189.13,189.09,2.67]
[1761255210019,2.63,189.13,189.09,2.67]
[1761255211119,2.63,189.13,189.1,2.67]
[1761255233251,2.63,189.13,189.1,4.758]
[1761255233450,2.63,189.13,189.11,2.67]
[1761255242450,2.63,189.13,189.1,7.608]
[1761255242651,2.63,189.13,189.11,2.85]
[1761255267069,6.49684073,189.13,189.11,2.85]
[1761255271674,3.86684073,189.13,189.11,2.85]
[1761255271973,11.42404073,189.14,189.11,2.85]
[1761255272274,3.86684073,189.13,189.11,2.85]
[1761255274779,6.66684073,189.13,189.11,2.85]
[1761255275475,2.8,189.13,189.11,2.85]
[1761255275975,2.8,189.12,189.09,2.88]
[1761255276177,2.8,189.16,189.09,2.88]
[1761255276376,2.8,189.14,189.09,2.88]
[1761255276577,6.66986011,189.14,189.09,2.88]
[1761255276773,2.8,189.14,189.09,2.88]
[1761255277178,6.6700155,189.14,189.09,2.88]
[1761255277478,2.8,189.14,189.09,2.88]
[1761255277877,6.66951291,189.14,189.09,2.88]
[1761255278174,2.8,189.14,189.1,2.88]
[1761255280771,3.86863471,189.15,189.1,2.88]
[1761255280978,6.66863471,189.18,189.12,1.61015235]
[1761255281178,2.8,189.18,189.13,2.88]
[1761255281473,2.8,189.18,189.15,2.88]
[1761255281673,3.87047834,189.21,189.17,2.88]
[1761255281877,2.8,189.19,189.14,2.88]
[1761255282079,2.8,189.18,189.14,2.88]
[1761255282384,2.8,189.17,189.14,2.88]
[1761255283279,4.41015235,189.17,189.14,2.88]
[1761255283877,1.61015235,189.17,189.14,2.88]
[1761255284578,4.41015235,189.17,189.14,2.88]
[1761255286280,2.8,189.16,189.14,2.88]
[1761255286681,2.8,189.16,189.08,9.89171293]
[1761255286887,4.41015235,189.14,189.09,2.88]
[1761255287886,1.61015235,189.14,189.12,2.88]
[1761255288989,1.61015235,189.15,189.12,2.88]
[1761255289392,4.41015235,189.15,189.12,2.88]
[1761255290393,2.8,189.15,189.12,2.88]
[1761255303304,2.8,189.15,189.1,2.85]
[1761255303805,2.8,189.15,189.07,2.85]
[1761255304197,2.87,189.14,189.07,2.85]
[1761255304393,2.87,189.13,189.07,2.85]
[1761255304998,2.87,189.11,189.07,2.85]
[1761255305900,2.87,189.1,189.05,2.85]
[1761255307004,2.87,189.09,189.05,2.85]
[1761255317006,2.87,189.08,189.05,2.85]
[1761255319313,2.87,189.07,189.01,2.85]
[1761255320707,2.87,189.04,189.01,2.85]
[1761255321906,2.87,189.04,189.0,43.7]
[1761255321907,2.87,189.03,189.0,2.85]
[1761255331923,7.6299,189.03,189.0,2.85]
[1761255332916,7.5295,189.05,189.0,2.85]
[1761255333722,4.7595,189.05,189.0,2.85]
[1761255333916,2.77,189.04,189.0,2.85]
[1761255335822,7.529,189.07,188.99,2.68]
[1761255336823,7.529,189.07,189.0,2.68]
[1761255337520,2.77,189.06,188.98,2.68]
[1761255338022,2.77,189.06,189.0,7.4404]
[1761255338417,2.77,189.06,189.0,4.7604]
[1761255338619,2.77,189.06,189.01,2.68]
[1761255345535,4.759,189.07,189.02,2.68]
[1761255345728,2.77,189.06,189.02,2.68]
[1761255361040,2.8,189.05,189.02,2.68]
[1761255371041,2.8,189.05,189.01,4.7602]
[1761255371246,2.8,189.05,189.02,2.63]
[1761255371745,2.8,189.05,188.99,4.7606]
[1761255372050,2.8,189.03,188.99,2.63]
[1761255372950,2.8,189.03,188.99,7.3907]
[1761255373150,2.8,189.03,189.0,2.63]
[1761255375750,2.8,189.03,188.97,7.3912]
[1761255375950,2.8,189.02,188.97,7.3912]
[1761255376352,2.8,189.02,188.98,2.63]
[1761255378755,2.8,189.04,188.99,2.63]
[1761255380058,2.8,189.04,189.01,2.63]
[1761255385760,2.8,189.04,189.0,7.3904]
[1761255386263,2.8,189.04,189.0,4.7604]
[1761255386460,2.8,189.04,189.01,2.79]
[1761255396372,2.8,189.04,188.97,2.82]
[1761255397974,2.8,189.04,188.99,4.7607]
[1761255398173,2.8,189.04,189.0,2.82]
[1761255403674,2.8,189.04,189.0,7.5805]
[1761255403875,2.8,189.04,189.01,2.82]
[1761255404476,2.78,189.07,189.02,2.82]
[1761255404682,2.78,189.06,189.02,2.82]
[1761255414996,7.5391,189.06,189.02,2.82]
[1761255415197,2.78,189.05,189.02,2.82]
[1761255419298,2.69,189.04,189.01,7.5702]
[1761255421305,2.69,189.04,188.97,2.81]
[1761255423006,2.69,189.03,188.98,7.5709]
[1761255423202,2.69,189.03,188.99,2.81]
[1761255423599,2.69,189.03,188.99,7.5707]
[1761255423999,2.69,189.03,188.99,4.7607]
[1761255424206,2.69,189.03,189.0,2.81]
[1761255432214,2.69,189.03,189.0,7.5705]
[1761255432414,2.69,189.03,189.01,2.81]
[1761255433716,2.69,189.03,189.0,4.7605]
[1761255433922,2.69,189.03,189.0,7.5705]
[1761255437417,2.69,189.03,189.0,4.7605]
[1761255437718,2.69,189.03,189.01,2.81]
[1761255437917,2.69,189.06,189.01,2.81]
[1761255438118,2.69,189.05,189.01,2.81]
[1761255445724,2.69,189.04,188.97,2.81]
[1761255445917,2.69,189.03,188.94,2.81]
[1761255446224,2.69,189.01,188.94,2.81]
[1761255446722,2.87,189.0,188.94,2.81]
[1761255447117,2.87,188.99,188.94,2.81]
[1761255454037,2.64,188.98,188.94,2.81]
[1761255456945,2.64,189.03,188.94,2.81]
[1761255457644,2.64,189.0,188.94,2.81]
[1761255458040,2.64,189.0,188.95,2.76]
[1761255458950,4.7607,189.0,188.95,2.76]
[1761255459143,2.64,188.99,188.95,2.76]
[1761255462042,2.64,188.99,188.96,2.76]
[1761255462848,7.4002,189.02,188.96,2.76]
[1761255463045,2.64,189.01,188.97,2.76]
[1761255465240,7.3996,189.04,188.98,2.76]
[1761255465744,2.64,189.04,188.99,4.7607]
[1761255465942,6.56055053,189.12,188.93,2.51832941]
[1761255465943,2.64,189.07,189.0,2.76]
[1761255466153,2.64,189.07,189.03,2.76]
[1761255467344,2.64,189.07,188.91,2.51832941]
[1761255467345,2.64,189.04,188.94,2.76]
[1761255469051,7.4004,189.01,188.95,2.76]
[1761255474861,2.64,189.0,188.95,2.76]
[1761255478759,4.7604,189.01,188.95,2.76]
[1761255478968,2.85,189.03,188.96,2.8]
[1761255480262,7.6091,189.06,188.96,2.8]
[1761255480457,2.85,189.06,188.96,2.8]
[1761255480962,2.85,189.03,188.96,2.8]
[1761255481264,2.85,189.0,188.93,46.48]
[1761255481456,2.85,189.0,188.94,2.8]
[1761255482448,2.85,188.99,188.94,2.8]
[1761255482653,2.85,188.99,188.95,1.61229882]
[1761255482850,2.85,188.99,188.95,4.41229882]
[1761255484474,2.85,189.01,188.97,1.61229882]
[1761255484762,2.85,189.01,188.99,1.61229882]
[1761255490464,2.85,188.98,188.91,2.8]
[1761255490764,2.85,188.98,188.94,1.61229882]
[1761255490972,2.85,188.98,188.94,4.41229882]
[1761255491972,2.85,188.98,188.94,1.61229882]
[1761255492163,2.85,188.98,188.95,2.8]
[1761255495476,2.85,188.98,188.96,1.61229882]
[1761255501182,2.85,188.98,188.97,1.61229882]
[1761255503981,3.83150511,189.04,188.97,1.61229882]
[1761255504185,2.85,189.03,188.98,4.41229882]
[1761255504481,2.85,189.01,188.98,4.41229882]
[1761255506271,2.85,189.01,188.98,4.45229882]
[1761255507085,2.85,189.01,188.99,2.84]
[1761255508787,2.85,189.01,188.98,4.45229882]
[1761255515988,2.85,189.01,188.99,1.61229882]
[1761255521686,2.85,189.01,188.98,4.45229882]
[1761255521994,2.85,189.01,188.98,1.61229882]
[1761255526497,2.85,189.01,188.98,4.31229882]
[1761255530614,2.85,189.01,188.98,1.61229882]
[1761255530903,2.85,189.01,188.99,2.7]
[1761255535305,4.7604,189.01,188.99,2.7]
[1761255535512,2.69,189.0,188.96,1.61229882]
[1761255535811,2.69,189.0,188.96,4.31229882]
[1761255536313,2.69,189.0,188.97,2.7]
[1761255537010,7.4507,189.0,188.97,2.7]
[1761255538110,2.69,188.99,188.97,2.7]
[1761255538306,2.69,188.98,188.96,1.61229882]
[1761255538912,2.69,188.98,188.96,4.31229882]
[1761255539806,2.73,188.97,188.93,2.66]
[1761255540007,2.73,188.97,188.95,1.61229882]
[1761255541112,2.73,188.96,188.95,1.61229882]
[1761255541610,2.73,188.96,188.94,1.61229882]
[1761255541809,2.73,188.95,188.9,2.66]
[1761255542012,2.73,188.95,188.9,4.27229882]
[1761255542311,2.73,188.92,188.9,2.66]
[1761255542611,2.73,188.92,188.9,4.27229882]
[1761255544719,2.73,188.92,188.9,2.66]
[1761255545520,2.73,188.92,188.87,2.66]
[1761255548917,2.73,188.98,188.87,2.66]
[1761255549215,2.73,188.97,188.87,2.66]
[1761255549408,2.73,188.9,188.87,2.66]
[1761255553622,2.73,188.89,188.83,2.66]
[1761255553811,2.73,188.89,188.84,5.18077015]
[1761255555021,4.7635,188.89,188.84,5.18077015]
[1761255555216,2.73,188.88,188.84,5.18077015]
[1761255556019,2.73,188.88,188.84,2.66]
[1761255556225,2.73,188.88,188.85,2.52077015]
[1761255557220,2.73,188.88,188.85,5.18077015]
[1761255559625,2.73,188.88,188.85,2.52077015]
[1761255559814,2.73,188.87,188.85,2.52077015]
[1761255560819,2.73,188.93,188.86,2.66]
[1761255561023,2.73,188.93,188.89,5.18077015]
[1761255564233,2.73,188.93,188.89,2.52077015]
[1761255564532,2.73,188.93,188.89,5.18077015]
[1761255565833,2.73,188.93,188.9,2.66]
[1761255566141,2.73,188.96,188.93,2.66]
[1761255571541,2.63,188.98,188.93,2.66]
[1761255571842,2.63,188.98,188.89,2.78]
[1761255572140,4.7614,188.97,188.91,2.52077015]
[1761255572438,2.63,188.96,188.91,5.30077015]
[1761255572632,2.63,188.96,188.94,2.52077015]
[1761255572830,2.63,188.96,188.94,5.30077015]
[1761255574641,4.7612,188.98,188.94,5.30077015]
[1761255574943,2.63,188.97,188.94,5.30077015]
[1761255575448,4.7612,188.98,188.95,2.78]
[1761255575648,2.63,188.97,188.95,2.78]
[1761255579949,2.63,188.99,188.95,2.78]
[1761255584558,2.63,188.99,188.94,2.78]
[1761255585158,2.63,188.99,188.95,2.78]
[1761255588463,2.63,189.05,188.93,5.30077015]
[1761255588657,2.63,189.04,188.93,5.30077015]
[1761255588861,2.63,189.04,188.93,2.52077015]
[1761255589064,2.63,189.04,188.94,2.78]
[1761255589565,4.7611,188.98,188.94,2.78]
[1761255589862,2.63,188.97,188.94,2.78]
[1761255590366,2.63,188.97,188.93,2.52077015]
[1761255590367,4.89970237,189.07,188.9,4.763]
[1761255590558,2.63,189.03,188.9,2.78]
[1761255591066,2.63,189.02,188.9,2.78]
[1761255591260,7.3917,188.96,188.9,2.78]
[1761255593966,2.63,188.95,188.9,2.78]
[1761255594264,2.63,188.94,188.9,2.78]
[1761255596669,2.63,188.93,188.9,2.78]
[1761255597966,7.3924,188.93,188.9,2.78]
[1761255600164,4.7619,188.95,188.9,2.78]
[1761255600361,7.6219,188.95,188.9,2.78]
[1761255600970,2.86,188.94,188.9,2.78]
[1761255604475,2.52077015,189.04,188.91,2.76]
[1761255604476,2.86,188.98,188.91,2.76]
[1761255605975,2.86,188.98,188.92,2.76]
[1761255606571,2.86,188.97,188.92,2.76]
[1761255606771,2.86,188.97,188.89,7.5232]
[1761255606979,2.86,188.97,188.9,1.61286132]
[1761255607279,2.86,188.95,188.9,4.37286132]
[1761255607468,2.86,188.95,188.9,2.76]
[1761255607976,2.86,188.94,188.9,2.76]
[1761255608361,6.69961785,188.94,188.86,2.76]
[1761255608563,2.86,188.92,188.86,2.76]
[1761255610981,2.86,188.91,188.86,2.76]
[1761255620085,2.86,189.01,188.88,2.76]
[1761255620280,2.86,188.98,188.89,2.76]
[1761255621089,2.86,188.96,188.9,2.76]
[1761255621589,7.6217,188.96,188.9,2.76]
[1761255621786,2.86,188.95,188.9,2.76]
[1761255622593,2.86,188.98,188.92,2.76]
[1761255623789,2.86,188.98,188.92,7.5224]
[1761255623992,2.86,188.97,188.87,1.61286132]
[1761255624195,2.86,188.97,188.88,2.76]
[1761255624990,7.6215,188.97,188.89,4.7631]
[1761255625186,2.86,188.96,188.89,4.7631]
[1761255625390,2.86,188.96,188.9,2.76]
[1761255630790,2.79,188.95,188.9,2.76]
[1761255631291,2.79,188.94,188.9,2.76]
[1761255631496,2.79,188.94,188.87,2.71]
[1761255632196,2.79,188.94,188.88,4.7634]
[1761255632391,7.5514,188.97,188.9,2.71]
[1761255633592,2.79,188.97,188.91,2.71]
[1761255634295,3.84901833,189.02,188.95,1.61286132]
[1761255634502,2.79,189.03,188.96,2.71]
[1761255635598,4.40286132,189.06,188.97,2.71]
[1761255635900,2.79,189.05,188.97,2.71]
[1761255636490,2.79,189.05,188.99,2.71]
[1761255636697,7.5485,189.08,188.99,2.71]
[1761255636997,2.79,189.07,188.99,2.71]
[1761255637406,2.79,189.07,189.01,4.32286132]
[1761255637892,2.79,189.07,189.02,2.71]
[1761255642999,2.79,189.07,189.01,1.61286132]
[1761255643194,2.79,189.07,189.01,4.32286132]
[1761255643399,2.79,189.07,189.01,1.61286132]
[1761255643599,2.79,189.07,189.02,2.71]
[1761255647493,4.7587,189.08,189.02,2.71]
[1761255648003,7.5487,189.08,189.02,2.71]
[1761255648700,4.7587,189.08,189.02,2.71]
[1761255648900,2.79,189.14,189.07,4.32286132]
[1761255649102,2.79,189.14,189.1,2.71]
[1761255651513,2.79,189.14,189.08,2.71]
[1761255653010,2.79,189.14,189.08,7.4685]
[1761255654109,2.79,189.14,189.09,2.71]
[1761255654308,1.61286132,189.16,189.09,2.71]
[1761255654511,1.61286132,189.16,189.02,62.0]
[1761255654512,9.8408258,189.33,189.15,1.61286132]
[1761255654513,2.79,189.29,189.15,1.61286132]
[1761255654803,9.8408258,189.35,189.15,4.32286132]
[1761255654804,2.79,189.24,189.15,4.32286132]
[1761255655009,2.79,189.24,189.17,1.61286132]
[1761255655215,2.79,189.24,189.18,2.71]
[1761255657215,9.5037,189.35,189.18,2.71]
[1761255657216,4.7535,189.29,189.18,2.71]
[1761255657417,2.79,189.28,189.18,2.71]
[1761255658316,2.79,189.28,189.17,68.36906132]
[1761255658317,2.79,189.36,189.26,2.71]
[1761255658719,2.79,189.36,189.28,4.32286132]
[1761255659121,2.85,189.35,189.28,4.32286132]
[1761255659914,2.85,189.35,189.29,1.61286132]
[1761255660118,2.85,189.35,189.29,4.39286132]
[1761255660526,2.85,189.35,189.29,2.78]
[1761255661527,2.85,189.35,189.28,1.61286132]
[1761255661726,2.85,189.35,189.28,2.78]
[1761255661927,7.602,189.35,189.28,2.78]
[1761255662426,7.602,189.35,189.17,62.0]
[1761255662427,2.85,189.35,189.3,2.78]
[1761255662625,2.85,189.34,189.26,2.78]
[1761255663718,2.85,189.34,189.17,62.0]
[1761255663719,2.85,189.32,189.23,4.39286132]
[1761255664122,4.753,189.3,189.23,4.39286132]
[1761255664317,2.85,189.29,189.2,4.7552]
[1761255664518,2.85,189.28,189.19,1.61286132]
[1761255664724,4.7536,189.28,189.19,4.39286132]
[1761255664930,2.85,189.27,189.19,4.39286132]
[1761255665132,2.85,189.26,189.19,2.78]
[1761255674841,2.85,189.23,189.15,2.78]
[1761255676139,2.85,189.22,189.15,2.78]
[1761255677147,7.6052,189.22,189.15,2.78]
[1761255678542,2.85,189.19,189.12,2.78]
[1761255680049,7.6059,189.19,189.12,2.78]
[1761255681144,2.85,189.18,189.12,2.78]
[1761255681839,9.5061,189.3,188.98,9.89171293]
[1761255681840,2.85,189.16,189.04,2.78]
[1761255682053,2.85,189.16,188.98,6.57003944]
[1761255682054,2.85,189.16,189.02,2.78]
[1761255682547,2.85,189.13,189.02,2.78]
[1761255684851,2.85,189.13,189.03,2.78]
[1761255689953,4.7579,189.11,189.03,2.78]
[1761255690149,7.5479,189.11,189.03,2.78]
[1761255690351,2.79,189.19,189.05,2.71]
[1761255691947,4.7569,189.15,189.07,4.7586]
[1761255692156,4.7569,189.15,189.08,2.71]
[1761255692451,2.79,189.22,189.08,2.71]
[1761255693245,2.79,189.22,189.1,2.71]
[1761255693947,4.7559,189.19,189.11,4.7576]
[1761255694157,2.79,189.18,189.11,7.4676]
[1761255696960,2.79,189.18,189.11,4.7576]
[1761255697149,2.79,189.18,189.12,2.71]
[1761255700555,2.79,189.22,189.09,7.4682]
[1761255700751,2.5126582,189.2,189.09,7.4682]
[1761255700953,4.7566,189.16,189.09,7.4682]
[1761255701163,2.79,189.19,189.06,2.71]
[1761255701957,4.7574,189.13,189.06,2.71]
[1761255702167,7.5474,189.13,189.06,2.71]
[1761255704061,2.79,189.11,189.02,62.0]
[1761255704259,2.79,189.11,189.03,2.71]
[1761255705968,4.7584,189.09,189.03,2.71]
[1761255706169,7.5484,189.09,189.03,2.71]
[1761255707962,2.79,189.08,189.01,2.71]
[1761255708168,2.79,189.08,189.04,2.71]
[1761255732386,2.79,189.08,189.05,4.47078037]
[1761255738703,2.79,189.08,189.06,2.86]
[1761255744188,2.79,189.08,189.04,2.86]
[1761255744392,2.79,189.08,189.03,4.7596]
[1761255744393,2.79,189.08,189.05,4.47078037]
[1761255745199,2.79,189.08,189.06,2.86]
[1761255750011,2.79,189.08,189.05,6.57003944]
[1761255750210,2.89,189.07,189.04,6.57003944]
[1761255751213,2.89,189.06,189.04,6.57003944]
[1761255751512,2.89,189.06,189.03,6.57003944]
[1761255751813,2.89,189.05,189.03,6.57003944]
[1761255752308,2.89,189.05,189.01,4.39078037]
[1761255752915,2.89,189.05,189.02,2.78]
[1761255753508,2.89,189.05,189.03,1.61078037]
[1761255757513,2.89,189.05,189.02,1.61078037]
[1761255759713,2.89,189.0,188.97,1.61078037]
[1761255760024,2.89,188.98,188.97,1.61078037]
[1761255762515,2.89,188.98,188.95,1.61078037]
[1761255766022,2.89,189.04,188.97,4.39078037]
[1761255766219,2.89,189.04,188.99,4.39078037]
[1761255766525,7.6501,189.02,188.99,4.39078037]
[1761255766923,7.6501,189.02,188.95,4.7616]
[1761255766924,2.89,189.01,188.96,2.78]
[1761255768514,2.89,189.0,188.96,2.78]
[1761255769020,2.89,188.99,188.92,7.5423]
[1761255769212,2.89,188.99,188.93,2.78]
[1761255770819,4.7611,188.98,188.89,7.5431]
[1761255771129,2.89,188.97,188.91,2.78]
[1761255774128,4.7616,188.96,188.91,2.78]
[1761255774632,2.89,188.96,188.91,2.78]
[1761255775428,2.89,188.96,188.89,4.7631]
[1761255775624,2.89,188.96,188.87,2.78]
[1761255776128,2.89,188.93,188.87,2.78]
[1761255778135,2.89,188.92,188.87,2.78]
[1761255783741,7.6528,188.92,188.87,2.78]
[1761255783939,2.75,188.91,188.87,2.78]
[1761255786533,2.75,188.91,188.84,4.42078037]
[1761255787337,2.75,188.91,188.87,1.61078037]
[1761255788540,2.75,188.9,188.87,1.61078037]
[1761255792742,2.75,188.9,188.84,2.52167255]
[1761255792947,2.75,188.9,188.84,5.33167255]
[1761255795040,2.75,188.89,188.84,5.33167255]
[1761255795244,2.75,188.89,188.84,2.52167255]
[1761255795850,2.75,188.89,188.84,5.33167255]
[1761255796855,2.75,188.89,188.82,10.09657255]
[1761255797354,2.75,188.89,188.82,5.33167255]
[1761255797853,2.75,188.89,188.77,0.92148815]
[1761255798048,2.75,188.89,188.77,2.81]
[1761255798252,2.75,188.89,188.74,2.52167255]
[1761255798551,2.75,188.89,188.74,5.33167255]
[1761255798964,2.75,188.88,188.75,2.81]